bitfinex-derivatives/quotes_ETHF0:USTF0_20250501
["timestamp","ask_amount","ask_price","bid_price","bid_amount"]
[1746135184543,5.94403,1845.4,1845.3,6.44685]
[1746135186743,5.94403,1845.4,1845.3,5.3634]
[1746135189949,5.94403,1845.4,1845.3,3.676]
[1746135202662,5.94403,1845.4,1845.3,7.081]
[1746135203361,12.04893507,1845.4,1845.3,7.081]
[1746135215368,12.04893507,1845.4,1845.3,8.7361]
[1746135215873,12.04893507,1845.4,1845.3,9.81955]
[1746135216872,12.04893507,1845.4,1845.3,8.7361]
[1746135218870,5.94403,1845.4,1845.3,8.7361]
[1746135219577,5.94403,1845.4,1845.3,9.81955]
[1746135220873,2.73623,1845.4,1845.3,9.81955]
[1746135221372,5.94403,1845.4,1845.3,9.81955]
[1746135222277,5.94403,1845.4,1845.3,8.7361]
[1746135222668,9.56764501,1845.4,1845.3,8.7361]
[1746135226673,6.35984501,1845.4,1845.3,8.7361]
[1746135226979,10.25846704,1845.4,1845.3,8.7361]
[1746135228982,7.05066704,1845.4,1845.3,8.7361]
[1746135229183,10.25846704,1845.4,1845.3,8.7361]
[1746135239286,9.56764501,1845.4,1845.3,8.7361]
[1746135240194,9.56764501,1845.4,1845.3,7.081]
[1746135241185,9.56764501,1845.4,1845.3,3.676]
[1746135241385,1.08363,1845.0,1844.9,5.00974188]
[1746135241690,1.08369,1844.9,1844.8,10.65209064]
[1746135241891,2.80589,1844.9,1844.8,10.65209064]
[1746135242091,7.80589,1844.9,1844.8,10.65209064]
[1746135242491,8.24382605,1844.9,1844.8,10.65209064]
[1746135242891,7.80589,1844.9,1844.8,10.65209064]
[1746135243193,7.80589,1844.9,1844.8,3.676]
[1746135244087,8.24296362,1844.9,1844.8,3.676]
[1746135244298,1.08386,1844.6,1844.5,14.49519169]
[1746135244489,4.29166,1844.6,1844.5,14.49519169]
[1746135245093,4.29166,1844.6,1844.5,18.17119169]
[1746135247797,4.29166,1844.6,1844.5,3.676]
[1746135259109,1.0841,1844.2,1844.1,3.405]
[1746135259301,4.2919,1844.2,1844.1,3.405]
[1746135259905,5.9054,1844.2,1844.1,5.0335]
[1746135260207,2.6976,1844.2,1844.1,5.0335]
[1746135273917,3.5123,1844.2,1844.1,3.405]
[1746135280022,1.08416,1844.1,1844.0,5.2948]
[1746135280217,6.03386,1844.1,1844.0,5.2948]
[1746135281321,6.03386,1844.1,1844.0,3.676]
[1746135289228,1.08445,1843.6,1843.5,3.676]
[1746135289527,4.29225,1843.6,1843.5,6.1609]
[1746135290333,5.89045,1843.6,1843.5,6.1609]
[1746135294322,5.89045,1843.6,1843.5,3.676]
[1746135299532,5.89045,1843.6,1843.5,5.3212]
[1746135300353,5.89045,1843.6,1843.5,3.676]
[1746135301538,10.89045,1843.6,1843.5,3.676]
[1746135302923,5.89045,1843.6,1843.5,3.676]
[1746135305137,1.08457,1843.4,1843.3,3.676]
[1746135305337,4.29237,1843.4,1843.3,3.676]
[1746135305743,6.71977,1843.4,1843.3,3.676]
[1746135314639,12.55777,1843.4,1843.3,3.676]
[1746135316243,12.55777,1843.4,1843.3,2.58126]
[1746135316743,12.55777,1843.4,1843.3,1.41708]
[1746135317143,1.08474,1843.1,1843.0,1.6638]
[1746135317343,4.29254,1843.1,1843.0,3.3586]
[1746135317742,1.0848,1843.0,1842.9,3.676]
[1746135317939,8.6441,1843.0,1842.9,3.676]
[1746135318245,8.6441,1843.0,1842.3,3.2078]
[1746135318246,1.08516,1842.4,1842.3,3.408]
[1746135318743,1.08516,1842.4,1842.3,8.408]
[1746135319144,1.08516,1842.4,1842.3,12.084]
[1746135319344,1.08513,1842.5,1842.3,13.16921]
[1746135319546,1.08513,1842.5,1842.4,3.2672]
[1746135319735,1.08513,1842.5,1842.4,8.2672]
[1746135320146,1.08513,1842.5,1842.4,11.9432]
[1746135320339,1.08513,1842.5,1842.4,6.9432]
[1746135320540,3.2078,1842.6,1842.4,8.02836]
[1746135320842,4.29289,1842.6,1842.5,1.6176]
[1746135322141,4.29289,1842.6,1842.5,5.2936]
[1746135324842,3.2078,1843.0,1842.9,1.08486]
[1746135325241,3.2078,1843.0,1842.9,6.08486]
[1746135325442,3.2078,1843.0,1842.9,8.54016]
[1746135325644,4.2926,1843.0,1842.9,8.54016]
[1746135326038,3.2078,1843.0,1842.9,8.54016]
[1746135326244,3.2078,1843.0,1842.9,12.21616]
[1746135326851,3.2078,1843.0,1842.9,7.21616]
[1746135327050,4.2926,1843.0,1842.9,6.1313]
[1746135327449,4.2926,1843.0,1842.9,7.21616]
[1746135327946,4.2926,1843.0,1842.9,6.1313]
[1746135328543,1.0848,1843.0,1842.9,6.1313]
[1746135329544,1.0848,1843.0,1842.9,7.21616]
[1746135331545,1.0848,1843.0,1842.9,6.1313]
[1746135331748,4.2926,1843.0,1842.9,6.1313]
[1746135342259,4.2926,1843.0,1842.9,4.5397]
[1746135344358,4.2926,1843.0,1842.9,3.676]
[1746135346960,5.9368,1843.0,1842.9,3.676]
[1746135354161,10.9368,1843.0,1842.9,3.676]
[1746135354370,14.3638,1843.0,1842.9,3.676]
[1746135355261,1.08504,1842.6,1842.5,1.6183]
[1746135355555,4.29284,1842.6,1842.5,1.6183]
[1746135356165,4.29284,1842.6,1842.5,5.2943]
[1746135356467,5.93604,1842.6,1842.5,5.2943]
[1746135360160,6.73954,1842.6,1842.5,3.676]
[1746135360462,11.73954,1842.6,1842.5,2.54861]
[1746135360661,1.08533,1842.1,1842.0,3.34]
[1746135360863,4.29313,1842.1,1842.0,3.34]
[1746135361067,4.29313,1842.1,1842.0,7.016]
[1746135361462,5.86803,1842.1,1842.0,7.016]
[1746135363368,4.29313,1842.1,1842.0,7.016]
[1746135363570,4.29313,1842.1,1842.0,8.10139]
[1746135363764,4.29313,1842.1,1842.0,7.016]
[1746135363966,3.2078,1842.1,1842.0,8.10139]
[1746135364264,4.29313,1842.1,1842.0,7.016]
[1746135365769,1.08533,1842.1,1842.0,7.016]
[1746135365971,1.08533,1842.1,1842.0,8.10139]
[1746135366262,1.08533,1842.1,1842.0,13.10139]
[1746135366469,1.08533,1842.1,1842.0,8.10139]
[1746135366666,3.62179246,1842.2,1842.1,1.08533]
[1746135366868,3.62179246,1842.2,1842.1,2.73643]
[1746135368762,3.62179246,1842.2,1842.1,7.73643]
[1746135369670,1.08521,1842.3,1842.2,1.08527]
[1746135369867,1.08521,1842.3,1842.2,2.78097]
[1746135370072,1.08521,1842.3,1842.2,6.20897]
[1746135370271,1.08521,1842.3,1842.2,9.88497]
[1746135372676,1.0852,1842.4,1842.3,1.08518]
[1746135372870,1.0852,1842.4,1842.3,4.40978]
[1746135373071,1.0852,1842.4,1842.3,8.08578]
[1746135378174,1.0852,1842.4,1842.3,7.0006]
[1746135378575,2.7142,1842.4,1842.3,3.676]
[1746135382679,11.1532,1842.4,1842.3,2.11059]
[1746135382879,1.08557,1841.7,1841.6,1.0]
[1746135383077,1.08563,1841.6,1841.5,7.2305548]
[1746135383374,4.34183,1841.6,1841.5,7.2305548]
[1746135386791,1.08574,1841.5,1841.3,3.2053]
[1746135387083,6.03134,1841.5,1841.3,3.2053]
[1746135387289,6.03134,1841.5,1841.3,6.8813]
[1746135387487,2.82354,1841.4,1841.3,6.8813]
[1746135388591,2.82354,1841.4,1841.3,7.9671]
[1746135388791,1.7378,1841.4,1841.3,7.9671]
[1746135389191,2.82354,1841.4,1841.3,7.9671]
[1746135391395,2.82354,1841.4,1841.3,6.8813]
[1746135392199,2.82354,1841.4,1841.3,7.9671]
[1746135392493,2.82354,1841.4,1841.3,6.8813]
[1746135394993,2.82354,1841.4,1841.3,7.9671]
[1746135395797,1.7378,1841.4,1841.3,7.9671]
[1746135396991,2.82354,1841.4,1841.3,7.9671]
[1746135397292,1.7378,1841.4,1841.3,7.9671]
[1746135397496,2.82354,1841.4,1841.3,4.7618]
[1746135399504,2.82354,1841.4,1841.3,6.4519]
[1746135410601,3.2078,1841.7,1841.5,1.08569]
[1746135410802,3.2078,1841.9,1841.7,1.08557]
[1746135411108,3.2078,1841.9,1841.8,5.32811]
[1746135411300,3.62179246,1842.0,1841.9,1.08545]
[1746135411503,3.62179246,1842.0,1841.9,2.70185]
[1746135411706,3.62179246,1842.0,1841.9,7.70185]
[1746135411903,3.62179246,1842.0,1841.9,48.50185]
[1746135412103,3.62179246,1842.0,1841.9,52.17785]
[1746135413006,7.17007095,1842.2,1842.1,1.08533]
[1746135413215,8.947166,1842.3,1842.2,1.08527]
[1746135413506,6.618136,1842.3,1842.2,3.12689679]
[1746135413702,6.618136,1842.3,1842.2,8.12689679]
[1746135414110,6.618136,1842.3,1842.2,12.80289679]
[1746135414303,1.08491,1842.9,1842.7,1.08492]
[1746135414609,1.08491,1842.9,1842.8,2.66022]
[1746135414909,2.66891,1842.9,1842.8,2.66022]
[1746135415116,2.66891,1842.9,1842.8,6.33622]
[1746135415410,2.66891,1842.9,1842.8,47.13622]
[1746135416714,1.584,1842.9,1842.8,47.13622]
[1746135417714,2.66886,1842.9,1842.8,47.13622]
[1746135422012,2.66886,1842.9,1842.8,46.0513]
[1746135422816,1.584,1842.9,1842.8,47.13622]
[1746135424319,1.08479,1843.1,1843.0,1.0848]
[1746135424511,1.08479,1843.1,1843.0,4.5228]
[1746135424710,2.78139,1843.1,1843.0,3.438]
[1746135425013,2.78139,1843.1,1843.0,44.238]
[1746135425213,2.78139,1843.1,1843.0,49.5909]
[1746135425412,2.78134,1843.1,1843.0,50.6757]
[1746135425610,1.6966,1843.1,1843.0,50.6757]
[1746135425818,2.78134,1843.1,1843.0,50.6757]
[1746135426517,2.78134,1843.1,1843.0,49.5909]
[1746135428420,2.78134,1843.1,1843.0,50.6757]
[1746135428919,2.78134,1843.1,1843.0,49.5909]
[1746135430822,1.6966,1843.1,1843.0,50.6757]
[1746135434921,5.10061,1843.2,1843.0,49.5909]
[1746135435128,5.10061,1843.2,1843.1,2.81784]
[1746135435926,5.10061,1843.2,1843.1,43.61784]
[1746135436315,3.2078,1843.2,1843.1,43.61784]
[1746135439928,4.29248,1843.2,1843.1,40.8]
[1746135440227,6.71528,1843.2,1843.1,40.8]
[1746135440424,6.71528,1843.2,1843.1,41.88474]
[1746135440730,6.71528,1843.2,1843.1,40.8]
[1746135441032,6.71528,1843.2,1843.1,41.88474]
[1746135442722,5.6306,1843.2,1843.1,41.88474]
[1746135444430,6.71528,1843.2,1843.1,41.88474]
[1746135444623,5.6306,1843.2,1843.1,43.62594]
[1746135444823,3.2078,1843.2,1843.1,43.62594]
[1746135455041,1.579,1843.3,1843.2,1.08468]
[1746135455338,4.7868,1843.3,1843.2,1.08468]
[1746135455541,4.7868,1843.3,1843.2,3.49468]
[1746135455842,4.7868,1843.3,1843.2,44.29468]
[1746135456139,4.7868,1843.3,1843.2,47.97068]
[1746135457038,5.6349,1843.3,1843.2,47.97068]
[1746135457643,6.71953,1843.3,1843.2,47.97068]
[1746135457936,5.6349,1843.3,1843.2,47.97068]
[1746135462248,6.71953,1843.3,1843.2,47.97068]
[1746135462447,5.6349,1843.3,1843.2,47.97068]
[1746135465152,6.71953,1843.3,1843.2,47.97068]
[1746135466346,5.6349,1843.3,1843.2,47.97068]
[1746135467253,6.71953,1843.3,1843.2,47.97068]
[1746135468652,5.6349,1843.3,1843.2,47.97068]
[1746135469753,5.6349,1843.3,1843.2,51.40168]
[1746135473361,0.7927,1843.5,1843.4,1.08457]
[1746135473562,4.0005,1843.5,1843.4,1.08457]
[1746135473763,3.2078,1843.5,1843.4,1.08457]
[1746135474055,7.17818417,1843.7,1843.6,1.08445]
[1746135474262,11.47037417,1843.7,1843.6,4.51545]
[1746135474559,13.06467417,1843.7,1843.6,4.51545]
[1746135475063,11.98028417,1843.7,1843.6,4.51545]
[1746135475360,13.06467417,1843.7,1843.6,4.51545]
[1746135475749,11.98028417,1843.7,1843.6,4.51545]
[1746135476558,10.38598417,1843.7,1843.6,4.51545]
[1746135476764,7.17818417,1843.7,1843.6,6.24985]
[1746135477059,13.83328101,1843.9,1843.8,1.08433]
[1746135477060,8.6425681,1843.9,1843.8,1.08433]
[1746135477759,8.6425681,1843.9,1843.8,44.41053]
[1746135478149,4.2923881,1843.9,1843.8,53.08653]
[1746135478357,3.1058781,1843.9,1843.8,56.29433]
[1746135478551,0.0906381,1843.9,1843.8,62.22633]
[1746135478967,8.1e-06,1843.9,1843.8,62.22633]
[1746135480361,8.1e-06,1843.9,1843.8,57.22633]
[1746135480559,8.1e-06,1843.9,1843.8,54.01853]
[1746135480959,1.6880081,1843.9,1843.8,54.01853]
[1746135482160,1.688,1843.9,1843.8,54.01853]
[1746135482364,1.688,1843.9,1843.8,61.2490848]
[1746135483461,6.688,1843.9,1843.8,51.7065548]
[1746135483660,10.98007,1843.9,1843.8,55.1365548]
[1746135483860,5.98007,1843.9,1843.8,55.1365548]
[1746135484965,5.98007,1843.9,1843.8,47.906]
[1746135497074,5.98007,1843.9,1843.8,49.5344]
[1746135497274,5.98007,1843.9,1843.8,47.906]
[1746135511286,5.98007,1843.9,1843.8,49.5868]
[1746135512084,5.98007,1843.9,1843.8,50.3972]
[1746135530399,3.46371331,1843.9,1843.8,50.3972]
[1746135530699,6.67151331,1843.9,1843.8,50.3972]
[1746135530902,7.48321331,1843.9,1843.8,50.3972]
[1746135531298,7.48321331,1843.9,1843.8,47.906]
[1746135531501,7.48321331,1843.9,1843.8,44.476]
[1746135534404,14.66139748,1843.9,1843.8,44.476]
[1746135534603,15.49479748,1843.9,1843.8,44.476]
[1746135535104,15.93643564,1843.9,1843.8,44.476]
[1746135536912,14.68309748,1843.9,1843.8,44.476]
[1746135537408,14.68309748,1843.9,1843.8,45.3422]
[1746135537715,12.16169748,1843.9,1843.8,46.1304]
[1746135538108,12.16169748,1843.9,1843.8,47.21473]
[1746135539709,11.07742748,1843.9,1843.8,46.1304]
[1746135539908,11.07742748,1843.9,1843.8,52.21473]
[1746135540105,7.86962748,1843.9,1843.8,52.21473]
[1746135540509,7.86962748,1843.9,1843.8,53.82143]
[1746135540803,7.86962748,1843.9,1843.8,57.02923]
[1746135543117,7.91724701,1844.4,1844.3,1.08404]
[1746135543416,7.91724701,1844.4,1844.3,4.50504]
[1746135544114,7.91724701,1844.4,1844.3,9.77664]
[1746135545114,3.62541701,1844.4,1844.3,9.77664]
[1746135545719,3.62541701,1844.4,1844.3,50.57664]
[1746135546018,3.62541701,1844.4,1844.3,55.99318694]
[1746135548022,3.2078,1844.6,1844.3,54.90914694]
[1746135548320,3.2078,1844.6,1844.5,1.08392]
[1746135548816,3.2078,1844.6,1844.5,8.63382]
[1746135549022,3.2078,1844.6,1844.5,54.43382]
[1746135549322,6.83321701,1845.0,1844.6,2.70966]
[1746135549509,6.83321701,1845.0,1844.7,5.8933]
[1746135549714,6.83321701,1845.0,1844.8,2.4778]
[1746135549912,7.91684701,1845.0,1844.9,2.70159]
[1746135550317,7.91684701,1845.0,1844.9,6.37759]
[1746135550514,6.83321701,1845.0,1844.9,47.17759]
[1746135551622,3.2078,1845.0,1844.9,47.17759]
[1746135557614,1.6281,1845.2,1845.1,1.08357]
[1746135557812,5.08988,1845.3,1845.2,1.08351]
[1746135558019,5.6319,1845.3,1845.2,3.58791]
[1746135558214,5.6319,1845.3,1845.2,44.38791]
[1746135558215,6.71535,1845.3,1845.2,44.38791]
[1746135558719,3.2078,1845.3,1845.2,44.38791]
[1746135559114,3.2078,1845.3,1845.2,48.06391]
[1746135566622,11.01595,1845.3,1845.2,44.476]
[1746135569633,16.85395,1845.3,1845.2,44.476]
[1746135574335,11.85395,1845.3,1845.2,44.476]
[1746135575137,11.85395,1845.3,1845.2,40.8]
[1746135577130,11.85395,1845.3,1845.2,44.476]
[1746135578238,11.85395,1845.3,1845.2,40.8]
[1746135579132,11.85395,1845.3,1845.2,44.476]
[1746135594044,16.17033902,1845.3,1845.2,44.476]
[1746135597350,17.98304752,1845.3,1845.2,44.476]
[1746135597645,17.98304752,1845.3,1845.2,46.1194]
[1746135600144,17.98304752,1845.3,1845.2,44.476]
[1746135600347,1.08374,1844.8,1844.7,1.6539]
[1746135600544,4.29154,1844.8,1844.7,2.487]
[1746135601146,3.2078,1844.8,1844.7,7.2468]
[1746135601442,3.2078,1844.9,1844.8,1.08372]
[1746135601641,1.0836,1845.1,1844.9,1.08365]
[1746135601841,1.0836,1845.1,1845.0,2.4004]
[1746135602048,1.0836,1845.1,1845.0,46.8764]
[1746135609448,1.08357,1845.1,1845.0,47.96003]
[1746135609939,3.2078,1845.2,1845.0,47.96003]
[1746135610143,4.29131,1845.2,1845.1,1.6975]
[1746135610341,3.2078,1845.2,1845.1,2.78107]
[1746135610651,4.29131,1845.2,1845.1,7.78107]
[1746135610851,4.29131,1845.2,1845.1,48.58107]
[1746135611457,4.29131,1845.2,1845.1,43.58107]
[1746135611955,1.08351,1845.2,1845.1,43.58107]
[1746135615357,1.08351,1845.2,1845.1,42.4975]
[1746135616055,1.08351,1845.2,1845.1,40.8]
[1746135616056,4.29131,1845.2,1845.1,40.8]
[1746135616258,7.66611,1845.2,1845.1,40.8]
[1746135638372,13.79015313,1845.2,1845.1,40.8]
[1746135649070,13.79015313,1845.2,1845.1,42.5423]
[1746135650678,13.79015313,1845.2,1845.1,40.8]
[1746135653478,15.60116007,1845.2,1845.1,40.8]
[1746135660582,22.04287431,1845.2,1845.1,40.8]
[1746135664379,23.85388124,1845.2,1845.1,40.8]
[1746135667182,20.64608124,1845.2,1845.1,40.8]
[1746135667385,23.85388124,1845.2,1845.1,40.8]
[1746135672089,1.08374,1844.8,1844.7,2.5238]
[1746135672289,8.62654,1844.8,1844.4,7.99675991]
[1746135672497,4.29172,1844.5,1844.4,7.20235991]
[1746135673189,4.29172,1844.5,1844.4,51.67835991]
[1746135673592,4.71644623,1844.5,1844.4,51.67835991]
[1746135674295,4.71644623,1844.5,1844.4,48.00235991]
[1746135675096,4.71644623,1844.5,1844.4,51.67835991]
[1746135676199,4.71644623,1844.5,1844.4,48.00235991]
[1746135677095,4.71644623,1844.5,1844.4,51.67835991]
[1746135677793,4.71644623,1844.5,1844.4,50.29941991]
[1746135677986,5.40746856,1844.5,1844.4,44.476]
[1746135678195,10.83761491,1844.5,1844.4,40.8]
[1746135678493,18.37111491,1844.5,1844.4,40.8]
[1746135678700,1.0841,1844.2,1844.1,2.4366]
[1746135678993,4.2919,1844.2,1844.1,2.4366]
[1746135679297,4.2919,1844.2,1844.1,43.2366]
[1746135680594,1.08421,1844.0,1843.9,0.8433]
[1746135680897,1.08427,1843.9,1843.8,3.676]
[1746135681091,2.67247,1843.9,1843.8,5.2909]
[1746135681291,2.67247,1843.9,1843.8,1.6149]
[1746135681696,2.67247,1843.9,1843.8,42.4149]
[1746135684300,8.51047,1843.9,1843.8,42.4149]
[1746135685889,8.51047,1843.9,1843.8,40.8]
[1746135691106,11.71827,1843.9,1843.8,40.8]
[1746135691306,3.2078,1843.9,1843.8,45.8]
[1746135691503,9.45203491,1844.2,1843.9,1.08425]
[1746135691504,4.69818491,1844.2,1843.9,1.08425]
[1746135691704,4.69818491,1844.2,1844.0,1.6647]
[1746135691903,4.69818491,1844.2,1844.1,0.8016]
[1746135692104,4.69818491,1844.2,1844.1,47.4622]
[1746135692303,4.69818491,1844.2,1844.1,49.1269]
[1746135694107,1.08415,1844.2,1844.1,49.1269]
[1746135696315,1.08415,1844.2,1844.1,44.1269]
[1746135720229,1.08415,1844.2,1844.1,43.3253]
[1746135720429,2.77445,1844.2,1844.1,43.3253]
[1746135728135,2.70996,1844.4,1844.1,43.3253]
[1746135728333,3.61403491,1844.5,1844.4,1.08398]
[1746135728539,3.61403491,1844.5,1844.4,4.51098]
[1746135728836,3.61403491,1844.5,1844.4,9.51098]
[1746135729138,3.61403491,1844.5,1844.4,53.98698]
[1746135729340,3.61403491,1844.5,1844.4,54.77698]
[1746135731036,1.08385,1844.7,1844.6,1.08386]
[1746135731439,1.08385,1844.7,1844.6,1.93976]
[1746135731636,1.08377,1844.8,1844.7,1.08376]
[1746135731843,3.2078,1844.9,1844.8,1.08374]
[1746135732340,3.61403491,1845.0,1844.9,1.08369]
[1746135732930,3.61403491,1845.0,1844.9,41.88369]
[1746135733131,3.61403491,1845.0,1844.9,45.55969]
[1746135734238,4.69766491,1845.0,1844.9,44.476]
[1746135734448,7.97516491,1845.0,1844.9,44.476]
[1746135735839,4.36113,1845.0,1844.9,44.476]
[1746135737146,4.36113,1845.0,1844.9,40.8]
[1746135737742,9.36113,1845.0,1844.9,40.8]
[1746135739343,4.36113,1845.0,1844.9,40.8]
[1746135747252,7.56893,1845.0,1844.9,40.8]
[1746135751455,4.36113,1845.0,1844.9,40.8]
[1746135751655,7.56893,1845.0,1844.9,40.8]
[1746135756553,6.76383,1845.0,1844.9,40.8]
[1746135757453,4.29143,1845.0,1844.9,40.8]
[1746135757652,3.61403491,1845.1,1845.0,1.08363]
[1746135757857,3.61403491,1845.1,1845.0,2.74813]
[1746135758161,3.61403491,1845.1,1845.0,11.42413]
[1746135761761,1.08345,1845.3,1845.2,1.08351]
[1746135762061,1.08345,1845.3,1845.2,4.52651]
[1746135762259,1.08345,1845.3,1845.2,8.20251]
[1746135762459,1.08345,1845.3,1845.2,9.83991]
[1746135766565,1.08342,1845.4,1845.3,1.08342]
[1746135766764,1.08342,1845.4,1845.3,2.80862]
[1746135767165,1.08342,1845.4,1845.3,6.48462]
[1746135778875,2.5932,1845.6,1845.4,1.08333]
[1746135779067,2.5932,1845.6,1845.4,3.49793]
[1746135779267,1.08333,1845.5,1845.4,3.49793]
[1746135780072,1.08333,1845.5,1845.4,7.17393]
[1746135780767,2.69243,1845.5,1845.4,7.17393]
[1746135783072,3.52413,1845.5,1845.4,7.17393]
[1746135786684,3.52413,1845.5,1845.4,4.75933]
[1746135787677,9.0458,1845.9,1845.4,11.38448]
[1746135787972,2.68069,1845.8,1845.7,1.0832]
[1746135788169,2.68066,1845.8,1845.7,4.7592]
[1746135788370,2.68066,1845.8,1845.7,45.5592]
[1746135788978,1.5975,1845.8,1845.7,47.2932]
[1746135792679,1.08307,1846.0,1845.9,1.08306]
[1746135792880,1.08307,1846.0,1845.9,4.51906]
[1746135793083,1.08307,1846.0,1845.9,8.19506]
[1746135793275,2.78597,1846.0,1845.9,10.70646]
[1746135793678,1.7029,1846.0,1845.9,10.70646]
[1746135798098,1.7213,1846.1,1846.0,1.08304]
[1746135798284,1.7213,1846.1,1846.0,2.81004]
[1746135798795,3.4452,1846.1,1846.0,2.81004]
[1746135798989,2.5795,1846.1,1846.0,2.81004]
[1746135799185,2.5795,1846.1,1846.0,6.48604]
[1746135802900,1.08285,1846.4,1846.0,5.403]
[1746135803099,2.66285,1846.4,1846.3,1.08282]
[1746135804604,1.08285,1846.4,1846.3,1.08282]
[1746135805199,2.66285,1846.4,1846.3,1.08282]
[1746135806202,4.29047,1846.7,1846.6,1.08269]
[1746135806394,4.0107,1846.7,1846.6,1.08269]
[1746135806903,4.0107,1846.7,1846.6,42.67519]
[1746135807998,3.2078,1846.7,1846.6,42.67519]
[1746135808202,3.2078,1846.7,1846.6,44.39069]
[1746135808901,2.4494,1846.8,1846.7,1.08263]
[1746135809105,2.4494,1846.8,1846.7,4.75863]
[1746135809405,2.4494,1846.8,1846.7,6.37553]
[1746135809605,2.4494,1846.8,1846.7,47.17553]
[1746135809803,6.82183491,1846.9,1846.8,1.08257]
[1746135809997,5.43014635,1847.0,1846.9,1.08251]
[1746135810304,7.24019514,1847.1,1847.0,1.08245]
[1746135810498,5.89207514,1847.1,1847.0,47.81445]
[1746135810703,9.05503467,1847.2,1847.1,1.08239]
[1746135810905,9.05503467,1847.2,1847.1,14.34909]
[1746135811292,9.05503467,1847.2,1847.1,55.14909]
[1746135812301,9.05503467,1847.6,1847.5,1.08216]
[1746135812506,9.05503467,1847.6,1847.5,4.52416]
[1746135813300,9.05503467,1847.6,1847.5,7.73196]
[1746135816013,9.05503467,1847.6,1847.5,4.28996]
[1746135816205,18.81313467,1847.6,1847.5,44.0078]
[1746135816409,22.02093467,1847.6,1847.5,40.8]
[1746135816707,24.50953467,1847.6,1847.5,40.8]
[1746135817310,15.4545,1847.6,1847.5,40.8]
[1746135817809,2.70547,1847.5,1846.9,1.08251]
[1746135818011,1.08245,1847.0,1846.9,4.52351]
[1746135818309,1.08245,1847.0,1846.9,3.441]
[1746135818712,1.08245,1847.0,1846.9,45.32351]
[1746135819012,3.60925,1847.2,1846.9,44.241]
[1746135819212,3.60925,1847.2,1847.1,1.08239]
[1746135819914,3.60925,1847.2,1847.0,1.08241]
[1746135820215,3.60925,1847.2,1847.1,1.08239]
[1746135820415,2.80995,1847.2,1847.1,1.08239]
[1746135820614,1.7276,1847.2,1847.1,1.08239]
[1746135820908,1.08209,1847.7,1847.4,1.0822]
[1746135821108,1.08209,1847.7,1847.5,4.52315]
[1746135821314,1.6471,1847.6,1847.5,3.441]
[1746135821615,2.7292,1847.6,1847.5,3.441]
[1746135822116,6.4052,1847.6,1847.5,3.441]
[1746135822411,5.3231,1847.6,1847.5,3.441]
[1746135822617,5.3231,1847.6,1847.5,4.52316]
[1746135823604,3.676,1847.6,1847.5,4.52316]
[1746135823807,3.4589664,1847.6,1847.5,63.33896]
[1746135824008,3.4589664,1847.6,1847.5,64.92026]
[1746135824209,5.90461,1848.1,1848.0,1.08187]
[1746135824409,5.90461,1848.1,1848.0,4.52287]
[1746135824910,5.90461,1848.1,1848.0,45.32287]
[1746135825110,9.58061,1848.1,1848.0,45.32287]
[1746135825621,8.4988,1848.1,1848.0,45.32287]
[1746135825915,3.676,1848.1,1848.0,45.32287]
[1746135826915,3.676,1848.1,1848.0,46.92157]
[1746135827212,3.676,1848.1,1848.0,57.85357]
[1746135827513,1.7041,1848.8,1848.7,1.08146]
[1746135827714,10.13623467,1849.2,1848.7,3.44]
[1746135827921,1.7041,1849.1,1849.0,1.08123]
[1746135828116,1.7041,1849.1,1849.0,45.32123]
[1746135828315,11.46132,1849.1,1849.0,40.8]
[1746135828519,1.08169,1848.3,1848.2,3.44]
[1746135829014,1.08169,1848.3,1848.2,44.24]
[1746135829213,4.75769,1848.3,1848.2,44.24]
[1746135829613,5.54749,1848.3,1848.2,44.24]
[1746135830116,13.75529,1848.3,1848.2,44.24]
[1746135830416,8.75529,1848.3,1848.2,44.24]
[1746135831521,5.54749,1848.3,1848.2,44.24]
[1746135831722,8.75529,1848.3,1848.2,44.24]
[1746135833328,5.54749,1848.3,1848.2,44.24]
[1746135833522,8.75529,1848.3,1848.2,44.24]
[1746135833720,3.676,1848.3,1848.2,45.32175]
[1746135834115,5.09933,1848.8,1848.7,1.08146]
[1746135834315,3.2078,1848.8,1848.7,4.52046]
[1746135834515,4.8845,1848.8,1848.7,4.52046]
[1746135834715,2.7581,1848.8,1848.7,3.439]
[1746135834925,1.6767,1848.8,1848.7,4.52046]
[1746135835128,2.7581,1848.8,1848.7,4.52046]
[1746135835329,6.4341,1848.8,1848.7,3.439]
[1746135836223,1.08169,1848.3,1848.2,40.8]
[1746135836431,4.28949,1848.3,1848.2,40.8]
[1746135836728,9.28949,1848.3,1848.2,40.8]
[1746135836926,4.28949,1848.3,1848.2,40.8]
[1746135837130,9.57989,1848.3,1848.2,40.8]
[1746135840427,8.4982,1848.3,1848.2,41.88175]
[1746135840630,3.676,1848.3,1848.2,45.08955]
[1746135840825,3.2078,1849.2,1848.2,62.45161597]
[1746135841128,1.08091,1849.7,1849.1,5.91082]
[1746135841323,1.5869,1849.6,1849.4,1.08101]
[1746135841528,2.66785,1849.6,1849.5,44.349]
[1746135842126,3.676,1849.6,1849.5,44.349]
[1746135842326,3.676,1849.6,1849.5,45.42999]
[1746135842727,6.8838,1849.6,1849.5,45.42999]
[1746135842927,5.3242,1849.6,1849.5,44.349]
[1746135843232,3.676,1849.6,1849.5,45.42999]
[1746135843425,3.676,1849.6,1849.5,50.42999]